bitfinex/quotes_SOLUSD_20240829
["timestamp","ask_amount","ask_price","bid_price","bid_amount"]
[1724894738611,0.25098,143.74,143.7,16.2511]
[1724894739395,45.25098,143.75,143.7,16.2511]
[1724894739817,0.25098,143.75,143.7,16.2511]
[1724894741717,20.0,143.76,143.7,16.2511]
[1724894742017,0.12549,143.77,143.71,34.00597956]
[1724894742197,0.25098,143.78,143.71,32.61696735]
[1724894742413,0.25098,143.78,143.7,16.2511]
[1724894742793,7.20608,143.78,143.7,16.2511]
[1724894743413,0.25098,143.78,143.7,16.2511]
[1724894743616,6.9565,143.75,143.7,16.2511]
[1724894743815,6.956,143.76,143.7,16.2511]
[1724894744215,0.12549,143.75,143.7,16.2511]
[1724894744519,0.25098,143.75,143.7,16.2511]
[1724894744816,0.12549,143.75,143.7,16.2511]
[1724894746102,7.08209,143.75,143.7,16.2511]
[1724894746309,0.12549,143.74,143.7,16.2511]
[1724894748195,0.12549,143.75,143.7,16.2511]
[1724894748426,0.25098,143.75,143.7,16.2511]
[1724894757816,65.0,143.76,143.7,29.29210249]
[1724894758133,20.0,143.76,143.72,13.04100249]
[1724894758310,20.0,143.78,143.72,13.04100249]
[1724894761414,26.9551,143.78,143.7,16.2511]
[1724894761913,0.12549,143.77,143.71,13.04100249]
[1724894763822,20.0,143.78,143.71,13.04100249]
[1724894764031,20.0,143.78,143.73,13.04100249]
[1724894764632,20.0,143.79,143.73,13.04100249]
[1724894765838,20.0,143.79,143.74,22.7432]
[1724894766026,6.953,143.83,143.76,13.04100249]
[1724894766336,6.9523,143.84,143.76,13.04100249]
[1724894766637,6.9517,143.85,143.78,13.04100249]
[1724894766935,6.9527,143.83,143.79,16.4337]
[1724894767120,6.9531,143.82,143.79,16.4337]
[1724894767635,6.954,143.81,143.76,16.4337]
[1724894768035,0.25098,143.8,143.76,16.4337]
[1724894768340,6.9551,143.78,143.74,6.3095]
[1724894768523,6.9551,143.78,143.73,16.4337]
[1724894768916,0.12549,143.77,143.73,16.4337]
[1724894769325,45.25098,143.77,143.73,16.4337]
[1724894770125,52.20668,143.77,143.73,16.4337]
[1724894770333,52.20668,143.77,143.7,6.3095]
[1724894770631,45.25098,143.77,143.7,38.89409056]
[1724894770835,0.25098,143.77,143.7,38.89409056]
[1724894771049,20.25098,143.77,143.7,38.89409056]
[1724894771529,20.12549,143.77,143.7,38.89409056]
[1724894771718,20.0,143.77,143.7,38.89409056]
[1724894772533,26.9556,143.77,143.7,6.3095]
[1724894772732,0.25098,143.76,143.7,6.3095]
[1724894780045,7.20698,143.76,143.7,6.3095]
[1724894780227,0.25098,143.76,143.7,6.3095]
[1724894784143,7.20718,143.76,143.7,6.3095]
[1724894784440,0.25098,143.76,143.7,6.3095]
[1724894784640,45.25098,143.76,143.7,6.3095]
[1724894785039,0.25098,143.76,143.7,6.3095]
[1724894785222,20.25098,143.77,143.7,38.89409056]
[1724894788061,20.25098,143.77,143.71,13.03611028]
[1724894790040,27.20648,143.77,143.71,13.03611028]
[1724894790247,45.0,143.76,143.69,29.61431028]
[1724894790445,0.12549,143.75,143.69,29.61431028]
[1724894794248,7.20748,143.75,143.69,16.5782]
[1724894794455,7.20748,143.75,143.67,13.03611028]
[1724894796759,7.20748,143.75,143.69,13.03611028]
[1724894797050,0.25098,143.75,143.69,13.03611028]
[1724894797353,20.25098,143.75,143.69,13.03611028]
[1724894799333,15.6167,143.77,143.71,13.03611028]
[1724894799653,20.0,143.76,143.71,13.03611028]
[1724894801567,20.0,143.76,143.73,13.03611028]
[1724894801851,15.3432,143.81,143.73,13.03611028]
[1724894802353,6.339,143.82,143.75,13.03611028]
[1724894802651,387.2522,143.84,143.77,13.03611028]
[1724894803047,6.9528,143.83,143.75,13.03611028]
[1724894803856,0.12549,143.82,143.75,13.03611028]
[1724894804058,0.25098,143.82,143.75,13.03611028]
[1724894804432,20.25098,143.82,143.75,13.03611028]
[1724894805256,20.25098,143.82,143.71,21.8974]
[1724894805465,45.0,143.81,143.75,13.03611028]
[1724894805754,0.12549,143.8,143.75,13.03611028]
[1724894805942,45.25098,143.82,143.75,13.03611028]
[1724894806147,52.20418,143.82,143.75,13.03611028]
[1724894812358,45.25098,143.82,143.77,13.03611028]
[1724894822664,52.20418,143.82,143.71,74.04184112]
[1724894822872,52.20418,143.82,143.77,13.03611028]
[1724894823167,45.25098,143.82,143.77,13.03611028]
[1724894826155,6.9539,143.81,143.71,21.8974]
[1724894826358,6.9539,143.81,143.74,13.03611028]
[1724894826359,7.07969,143.8,143.74,13.03611028]
[1724894826756,60.74219,143.79,143.71,15.6161]
[1724894826951,0.12549,143.78,143.7,13.03611028]
[1724894827274,0.12549,143.78,143.67,22.6493]
[1724894827480,0.12549,143.78,143.71,13.03611028]
[1724894827973,0.12549,143.78,143.67,22.6493]
[1724894828268,6.9558,143.77,143.69,13.03611028]
[1724894828471,72.20708,143.76,143.69,13.03611028]
[1724894828648,6.9565,143.75,143.63,29.40045205]
[1724894828843,6.9578,143.73,143.65,13.03611028]
[1724894829065,6.9593,143.7,143.61,7.28387985]
[1724894829276,65.12549,143.69,143.61,13.03611028]
[1724894829473,65.25098,143.69,143.61,13.03611028]
[1724894830477,72.21048,143.69,143.59,2.84043205]
[1724894830655,72.21048,143.69,143.6,13.03611028]
[1724894831166,72.21048,143.69,143.62,13.03611028]
[1724894831358,65.25098,143.69,143.62,13.03611028]
[1724894837151,65.25098,143.69,143.64,13.03611028]
[1724894837371,20.25098,143.69,143.64,13.03611028]
[1724894837553,0.25098,143.69,143.64,13.03611028]
[1724894838368,0.12549,143.69,143.64,13.03611028]
[1724894838965,6.215,143.71,143.66,13.03611028]
[1724894839774,6.5231,143.74,143.68,13.03611028]
[1724894840974,0.12549,143.73,143.68,13.03611028]
[1724894841867,0.12549,143.73,143.66,13.03611028]
[1724894842254,20.12549,143.73,143.66,13.03611028]
[1724894842455,15.6167,143.76,143.68,13.03611028]
[1724894842672,20.12549,143.75,143.68,13.03611028]
[1724894842875,6.1302,143.77,143.7,13.03611028]
[1724894843761,15.1978,143.8,143.72,13.03611028]
[1724894844568,6.4377,143.81,143.74,13.03611028]
[1724894844959,6.4377,143.81,143.72,28.56971028]
[1724894845266,19.47381028,143.81,143.72,28.56971028]
[1724894845767,0.12549,143.8,143.72,28.56971028]
[1724894845971,0.25098,143.8,143.72,48.11203526]
[1724894846364,6.4377,143.81,143.72,48.11203526]
[1724894848461,0.12549,143.8,143.72,48.11203526]
[1724894849580,6.4377,143.81,143.72,48.11203526]
[1724894853796,0.12549,143.8,143.72,15.5336]
[1724894854265,0.12549,143.8,143.72,48.11203526]
[1724894854888,48.19513526,143.84,143.74,32.57843526]
[1724894854889,15.6167,143.84,143.74,32.57843526]
[1724894855062,15.6167,143.84,143.73,0.12549]
[1724894855063,15.6167,143.84,143.76,32.57843526]
[1724894856777,15.6167,143.84,143.77,1.36367609]
[1724894858467,6.4123,143.85,143.78,32.57843526]
[1724894858790,15.3796,143.87,143.79,1.36348641]
[1724894858992,15.3796,143.87,143.8,1.39043882]
[1724894859293,6.4956,143.89,143.8,50.18587408]
[1724894860166,6.4956,143.89,143.81,1.39035814]
[1724894860391,0.12549,143.88,143.81,1.39035814]
[1724894861593,6.4956,143.89,143.81,1.39035814]
[1724894862769,6.4956,143.89,143.8,48.79543526]
[1724894863079,0.12549,143.88,143.8,16.217]
[1724894863276,0.25098,143.88,143.8,16.217]
[1724894865082,6.4956,143.89,143.8,16.217]
[1724894865483,0.25098,143.88,143.8,16.217]
[1724894867996,0.25098,143.88,143.8,29.23511882]
[1724894869397,6.4956,143.89,143.8,29.23511882]
[1724894869575,0.12549,143.9,143.82,13.01811882]
[1724894869894,20.25098,143.9,143.82,13.01811882]
[1724894870497,20.25098,143.9,143.83,1.3902428]
[1724894872089,27.20028,143.9,143.82,13.01811882]
[1724894880490,40.21839882,143.9,143.81,6.3584]
[1724894880699,0.12549,143.89,143.81,6.3584]
[1724894880884,0.25098,143.89,143.81,6.3584]
[1724894881905,0.12549,143.89,143.82,13.01811882]
[1724894884105,7.07529,143.89,143.81,6.3584]
[1724894885600,7.07529,143.89,143.81,19.37651882]
[1724894886191,0.12549,143.89,143.81,19.37651882]
[1724894886390,0.25098,143.89,143.81,19.37651882]
[1724894887091,6.1381,143.93,143.83,13.01811882]
[1724894887290,22.5641,143.94,143.85,13.01811882]
[1724894887493,6.9474,143.94,143.85,13.01811882]
[1724894888109,6.9478,143.93,143.85,13.01811882]
[1724894888694,20.12549,143.92,143.85,13.01811882]
[1724894892905,27.07379,143.92,143.85,13.01811882]
[1724894897631,20.12549,143.92,143.85,13.01811882]
[1724894898509,27.07389,143.92,143.84,15.0058]
[1724894898829,13.01811882,143.9,143.84,15.0058]
[1724894899603,6.9498,143.89,143.84,15.0058]
[1724894899824,19.96741882,143.9,143.84,15.0058]
[1724894900021,20.12549,143.89,143.84,15.0058]
[1724894902121,20.0,143.89,143.84,15.0058]
[1724894902309,52.099,143.96,143.84,15.0058]
[1724894902310,20.0,143.9,143.84,15.0058]
[1724894902513,6.9485,143.92,143.84,15.0058]
[1724894902729,33.01811882,143.91,143.84,15.0058]
[1724894904919,20.0,143.91,143.84,15.0058]
[1724894905621,39.96691882,143.91,143.84,15.0058]
[1724894905827,0.12549,143.9,143.84,15.0058]
[1724894906418,13.01811882,143.89,143.84,15.0058]
[1724894906617,19.96811882,143.89,143.84,15.0058]
[1724894907024,13.01811882,143.89,143.84,15.0058]
[1724894907321,52.20038,143.9,143.84,15.0058]
[1724894909718,7.20038,143.9,143.84,15.0058]
[1724894911519,0.25098,143.9,143.84,15.0058]
[1724894916038,13.01811882,143.89,143.84,15.0058]
[1724894916337,0.25098,143.88,143.84,15.0058]
[1724894917218,7.20118,143.88,143.84,15.0058]
[1724894918026,45.0,143.9,143.84,15.0058]
[1724894918336,20.0,143.89,143.84,15.0058]
[1724894918517,20.12549,143.89,143.84,15.0058]
[1724894919317,20.0,143.89,143.84,15.0058]
[1724894921118,26.9501,143.89,143.84,15.0058]
[1724894922234,13.14360882,143.88,143.84,15.0058]
[1724894922447,7.07629,143.87,143.84,15.0058]
[1724894933546,7.07679,143.86,143.84,15.0058]
[1724894935440,0.12549,143.85,143.84,15.0058]
[1724894936219,0.12549,143.85,143.81,6.3584]
[1724894936425,45.12549,143.85,143.8,15.4497]
[1724894936645,0.12549,143.84,143.8,15.4497]
[1724894936947,7.07729,143.85,143.8,15.4497]
[1724894938236,7.07769,143.84,143.8,15.4497]
[1724894938546,6.9522,143.84,143.8,15.4497]
[1724894939542,7.07819,143.83,143.8,15.4497]
[1724894939841,6.9527,143.83,143.8,15.4497]
[1724894940549,6.9532,143.82,143.76,15.302]
[1724894940749,7.20468,143.81,143.76,15.302]
[1724894943043,6.953,143.83,143.76,28.32011882]
[1724894943236,0.12549,143.82,143.76,28.32011882]
[1724894944134,6.953,143.83,143.76,28.32011882]
[1724894944337,6.9517,143.85,143.77,6.4055]
[1724894944541,20.0,143.84,143.77,6.4055]
[1724894944839,20.0,143.84,143.78,1.390683]
[1724894946132,20.0,143.84,143.77,6.4055]
[1724894946648,29.33391228,143.89,143.79,15.3914]
[1724894946855,65.25098,143.88,143.79,15.3914]
[1724894947339,6.951,143.87,143.79,15.3914]
[1724894947542,20.12549,143.86,143.8,0.50460222]
[1724894947743,20.12549,143.86,143.8,1.26848651]
[1724894950159,7.07579,143.88,143.8,13.01811882]
[1724894950331,20.0,143.87,143.8,13.01811882]
[1724894950955,20.0,143.87,143.81,22.2521]
[1724894951155,13.14360882,143.89,143.82,13.01811882]
[1724894951156,6.9498,143.89,143.82,13.01811882]
[1724894951362,6.9492,143.9,143.82,13.01811882]
[1724894952659,20.0,143.89,143.82,13.01811882]
[1724894955347,20.0,143.9,143.83,15.9633]
[1724894957145,26.9493,143.9,143.83,15.9633]
[1724894957758,39.96741882,143.9,143.83,15.9633]
[1724894958860,0.12549,143.89,143.83,15.9633]
[1724894959062,7.20078,143.89,143.83,15.9633]
[1724894960844,6.9502,143.88,143.83,15.9633]
[1724894964466,7.20068,143.89,143.83,15.9633]
[1724894965155,7.07519,143.89,143.83,15.9633]
[1724894966457,0.12549,143.89,143.83,15.9633]
[1724894967377,26.9494,143.9,143.83,15.9633]
[1724894974481,6.9498,143.89,143.83,15.9633]
[1724894974685,0.25098,143.88,143.83,15.9633]
[1724894977285,7.20118,143.88,143.83,15.9633]
[1724894979776,6.9507,143.87,143.83,15.9633]
[1724894979969,20.22029882,143.86,143.83,15.9633]
[1724894980169,0.12549,143.86,143.83,15.9633]
[1724894980369,7.07709,143.86,143.83,15.9633]
[1724894981488,0.12549,143.85,143.83,15.9633]
[1724894993400,6.9506,143.88,143.83,15.9633]
[1724894993598,20.25098,143.87,143.83,15.9633]
[1724894998000,20.0,143.87,143.83,15.9633]
[1724894999306,26.9507,143.87,143.83,15.9633]
[1724894999805,0.12549,143.86,143.83,15.9633]
[1724894999982,26.9507,143.87,143.83,15.9633]
[1724895001408,7.07669,143.86,143.83,15.9633]
[1724895001707,20.09480882,143.86,143.8,15.0212]
[1724895001881,0.12549,143.85,143.8,15.0212]
[1724895003195,0.25098,143.86,143.8,15.0212]
[1724895004703,20.0,143.87,143.8,28.03931882]
[1724895005295,20.0,143.88,143.8,28.03931882]
[1724895006005,26.9502,143.88,143.8,28.03931882]
[1724895008379,0.12549,143.87,143.8,28.03931882]
[1724895008689,7.20188,143.87,143.8,15.0212]
[1724895009694,6.9513,143.86,143.8,15.0212]
[1724895011708,58.01811882,143.85,143.8,15.0212]
[1724895012008,33.14360882,143.84,143.8,15.0212]
[1724895012188,13.01811882,143.82,143.76,15.4898]
[1724895012506,13.01811882,143.79,143.76,15.4898]
[1724895012687,20.25098,143.81,143.71,15.4898]
[1724895012688,45.0,143.78,143.71,15.4898]
[1724895012896,13.01811882,143.76,143.71,15.4898]
[1724895013802,0.12549,143.77,143.71,15.4898]
[1724895014002,20.25098,143.78,143.71,15.4898]
[1724895014405,20.0,143.81,143.74,13.01811882]
[1724895014610,26.954,143.81,143.75,0.57833799]
[1724895014789,26.954,143.81,143.74,13.01811882]
[1724895014991,26.954,143.81,143.72,13.01811882]
[1724895015190,6.9543,143.8,143.72,13.01811882]
[1724895015404,6.9546,143.79,143.72,13.01811882]
[1724895015606,6.9546,143.79,143.71,15.4898]
[1724895015793,0.25098,143.78,143.71,15.4898]
[1724895016820,6.9541,143.8,143.72,13.01811882]
[1724895017117,20.0,143.79,143.72,13.01811882]
[1724895017815,20.0,143.8,143.72,13.01811882]
[1724895018007,0.25098,143.79,143.72,13.01811882]
[1724895018516,20.0,143.8,143.72,13.01811882]
[1724895020408,0.12549,143.79,143.71,15.4898]
[1724895020712,6.9551,143.78,143.71,15.4898]
[1724895021009,0.25098,143.77,143.71,15.4898]
[1724895021202,0.12549,143.77,143.71,15.4898]
[1724895022314,26.9541,143.8,143.72,13.01811882]
[1724895022614,26.9541,143.8,143.73,6.1396]
[1724895022615,0.25098,143.79,143.73,6.1396]
[1724895022812,20.0,143.8,143.74,13.01811882]
[1724895023116,20.0,143.8,143.75,15.9002]
[1724895024102,0.25098,143.79,143.75,15.9002]
[1724895025148,20.0,143.8,143.75,15.9002]
[1724895027514,39.97231882,143.8,143.75,15.9002]
[1724895027712,0.25098,143.79,143.75,15.9002]
[1724895029319,7.20548,143.79,143.75,15.9002]
[1724895029523,19.97331882,143.78,143.75,15.9002]
[1724895029699,0.25098,143.77,143.75,15.9002]
[1724895032603,20.0,143.8,143.75,15.9002]
[1724895032821,13.01811882,143.81,143.75,15.9002]
[1724895033121,20.0,143.79,143.75,15.9002]
[1724895033809,39.97301882,143.79,143.75,15.9002]
[1724895034004,7.20598,143.78,143.75,15.9002]
[1724895034406,39.97371882,143.77,143.69,22.9178]
[1724895034608,19.97501882,143.75,143.69,22.9178]
[1724895034917,0.12549,143.74,143.69,22.9178]
[1724895035094,13.01811882,143.73,143.69,16.5415]
[1724895035295,0.12549,143.72,143.69,16.5415]
[1724895035523,20.25098,143.72,143.69,16.5415]
[1724895037313,20.0,143.72,143.69,16.5415]
[1724895037515,6.9571,143.74,143.69,16.5415]
[1724895037713,20.25098,143.73,143.69,16.5415]
[1724895040325,20.0,143.73,143.69,16.5415]
[1724895041726,6.9571,143.74,143.69,16.5415]
[1724895042038,0.25098,143.73,143.69,16.5415]
[1724895043128,0.12549,143.73,143.69,16.5415]
[1724895043635,20.10110882,143.73,143.69,16.5415]
[1724895043837,7.08299,143.73,143.69,16.5415]
[1724895044016,39.97631882,143.72,143.69,16.5415]
[1724895044220,0.12549,143.71,143.69,16.5415]
[1724895044532,19.97741882,143.7,143.65,22.4569]
[1724895044732,7.08489,143.69,143.65,22.4569]
[1724895044926,6.9599,143.68,143.65,16.0806]
[1724895045228,19.97801882,143.68,143.65,16.0806]
[1724895046725,0.12549,143.67,143.65,16.0806]
[1724895047040,7.21138,143.67,143.62,16.4459]
[1724895047214,6.9609,143.66,143.62,16.4459]
[1724895047415,0.12549,143.65,143.62,16.4459]
[1724895047676,13.26909882,143.65,143.62,16.4459]
[1724895048027,20.23049882,143.65,143.62,16.4459]
[1724895048244,13.01811882,143.63,143.58,16.4459]
[1724895048447,7.21378,143.62,143.58,16.4459]
[1724895050534,0.25098,143.62,143.58,16.4459]
[1724895050842,20.25098,143.62,143.58,16.4459]
[1724895053028,0.25098,143.62,143.58,16.4459]
[1724895054039,6.961,143.66,143.58,29.46401882]
[1724895054240,20.25098,143.65,143.58,29.46401882]
[1724895054439,20.0,143.65,143.58,29.46401882]
[1724895054954,26.961,143.66,143.58,29.46401882]
[1724895055736,20.0,143.66,143.58,29.46401882]
[1724895056342,6.9595,143.69,143.6,13.01811882]
[1724895056654,6.9595,143.69,143.57,58.39767528]
[1724895056655,6.9585,143.71,143.63,6.3036]
[1724895057840,20.12549,143.7,143.63,6.3036]
[1724895058044,20.25098,143.7,143.63,6.3036]
[1724895058627,20.0,143.7,143.63,6.3036]
[1724895059038,40.13066904,143.74,143.64,15.5723]
[1724895059737,6.9575,143.73,143.64,15.5723]
[1724895060745,6.9584,143.71,143.64,15.5723]
[1724895060951,7.20998,143.7,143.64,15.5723]
[1724895061338,26.9594,143.69,143.64,15.5723]
[1724895061660,0.25098,143.68,143.64,15.5723]
[1724895062138,7.21108,143.68,143.64,15.5723]
[1724895062337,52.21108,143.68,143.64,15.5723]
[1724895063554,45.25098,143.68,143.64,15.5723]
[1724895063771,0.25098,143.68,143.64,15.5723]
[1724895064055,7.21098,143.68,143.64,15.5723]
[1724895064468,0.25098,143.68,143.64,15.5723]
[1724895064766,0.25098,143.68,143.6,15.4146]
[1724895064767,32.88060402,143.68,143.6,15.4146]
[1724895065059,65.0,143.67,143.6,15.4146]
[1724895065271,0.25098,143.66,143.6,15.4146]
[1724895065639,6.9614,143.65,143.6,15.4146]
[1724895065945,71.9608,143.67,143.6,15.4146]
[1724895066144,0.12549,143.66,143.6,15.4146]
[1724895066868,39.71601402,143.66,143.6,15.4146]
[1724895067037,45.0,143.65,143.6,15.4146]
[1724895067238,0.25098,143.64,143.6,15.4146]
[1724895067653,32.88060402,143.64,143.6,15.4146]
[1724895068248,0.25098,143.64,143.6,15.4146]
[1724895068546,20.25098,143.64,143.6,15.4146]
[1724895069137,27.21288,143.64,143.6,15.4146]
[1724895069345,59.84250402,143.64,143.6,15.4146]
[1724895069863,20.12549,143.64,143.6,15.4146]
[1724895070052,20.0,143.64,143.6,15.4146]
[1724895070959,52.62962402,143.64,143.56,15.7421]
[1724895071166,6.9628,143.62,143.56,15.7421]
[1724895071461,52.62962402,143.64,143.56,15.7421]
[1724895071652,26.9619,143.64,143.56,15.7421]
[1724895071855,0.12549,143.63,143.56,15.7421]
[1724895072354,6.9628,143.62,143.56,15.7421]
[1724895072553,0.25098,143.61,143.56,15.7421]
[1724895073371,20.25098,143.62,143.56,15.7421]
[1724895078164,27.21378,143.62,143.56,15.7421]
[1724895079869,6.9634,143.61,143.56,15.7421]
[1724895080050,0.12549,143.6,143.56,15.7421]
[1724895080250,0.25098,143.6,143.56,15.7421]
[1724895080652,0.12549,143.6,143.56,15.7421]
[1724895080852,0.25098,143.61,143.56,15.7421]
[1724895081472,7.21438,143.61,143.56,15.7421]
[1724895082767,0.25098,143.61,143.56,15.7421]
[1724895083370,0.25098,143.62,143.56,15.7421]
[1724895083866,0.25098,143.62,143.56,28.81127689]
[1724895084068,20.0,143.63,143.56,28.81127689]
[1724895084278,20.0,143.64,143.56,28.81127689]
[1724895085057,386.4348,143.69,143.5,59.55202299]
[1724895085058,58.3263,143.73,143.6,13.06917689]
[1724895085381,20.02767689,143.71,143.63,15.4631]
[1724895085680,13.06917689,143.71,143.63,15.4631]
[1724895085967,6.96,143.68,143.63,15.4631]
[1724895086169,13.06917689,143.69,143.63,15.4631]
[1724895086366,26.9602,143.68,143.63,15.4631]
[1724895086563,20.0,143.68,143.63,15.4631]
[1724895086771,19.5,143.68,143.63,15.4631]
[1724895087072,0.25098,143.67,143.63,15.4631]
[1724895087675,19.5,143.68,143.63,15.4631]
[1724895088976,0.12549,143.67,143.63,15.4631]
[1724895095879,19.5,143.68,143.63,15.4631]
[1724895096176,13.06917689,143.73,143.64,19.47167689]
[1724895096383,286.26087689,143.75,143.65,16.6305]
[1724895097257,6.9576,143.73,143.65,16.6305]
[1724895097458,20.0,143.72,143.65,16.6305]
[1724895097655,20.02677689,143.73,143.65,16.6305]
[1724895099486,13.06917689,143.73,143.65,16.6305]
[1724895099779,45.12549,143.72,143.65,16.6305]
[1724895099976,20.12549,143.71,143.65,16.6305]
[1724895100882,277.4316,143.8,143.67,15.8074]
[1724895101091,6.9554,143.78,143.71,15.8074]
[1724895101580,6.9554,143.78,143.71,28.87657689]
[1724895102381,6.9547,143.79,143.71,28.87657689]
[1724895102755,20.02287689,143.81,143.73,13.06917689]
[1724895102975,6.9542,143.8,143.73,13.06917689]
[1724895103360,20.0,143.79,143.73,13.06917689]
[1724895103778,26.9541,143.8,143.73,13.06917689]
[1724895104396,0.12549,143.79,143.73,13.06917689]
[1724895104961,26.9541,143.8,143.73,13.06917689]
[1724895105288,29.36891655,143.84,143.75,6.4456]
[1724895106281,6.9532,143.82,143.75,6.4456]
[1724895106583,20.0,143.81,143.75,6.4456]
[1724895106769,26.9538,143.81,143.75,6.4456]
[1724895106968,0.25098,143.8,143.75,6.4456]
[1724895107166,52.20508,143.8,143.75,6.4456]
[1724895107373,7.20508,143.8,143.75,6.4456]
[1724895107876,0.25098,143.8,143.75,6.4456]
[1724895108588,26.83017,143.81,143.75,6.4456]
[1724895110370,0.12549,143.8,143.75,6.4456]
[1724895112992,19.75098,143.81,143.75,19.51477689]
[1724895113197,13.06917689,143.86,143.77,13.06917689]
[1724895113571,21.9852,143.88,143.78,15.4124]
[1724895113779,6.9512,143.86,143.78,15.4124]
[1724895114273,6.9512,143.86,143.79,1.37620478]
[1724895114876,20.0,143.85,143.79,1.37620478]
[1724895115484,20.0,143.85,143.78,16.7921912]
[1724895115685,40.02087689,143.85,143.78,15.4124]
[1724895115881,0.12549,143.84,143.78,15.4124]
[1724895116094,0.25098,143.84,143.78,15.4124]
[1724895118385,26.82817,143.85,143.78,15.4124]
[1724895119110,19.87647,143.85,143.78,15.4124]
[1724895119399,6.9511,143.87,143.78,15.4124]
[1724895119987,6.9511,143.87,143.79,6.3277]
[1724895120183,32.56694222,143.89,143.79,6.3277]
[1724895120382,6.9512,143.86,143.79,6.3277]
[1724895120585,6.9525,143.84,143.79,6.3277]
[1724895120895,6.9522,143.84,143.79,6.3277]
[1724895121803,7.07719,143.85,143.79,6.3277]
[1724895121987,20.12549,143.84,143.79,6.3277]
[1724895123199,27.07789,143.84,143.79,6.3277]
[1724895123897,26.9524,143.84,143.79,6.3277]
[1724895124103,20.0,143.84,143.79,6.3277]
[1724895125498,26.9523,143.84,143.79,6.3277]
[1724895129580,32.56694222,143.83,143.78,15.4124]
[1724895129799,6.9539,143.81,143.78,15.4124]
[1724895130002,6.9543,143.8,143.78,15.4124]
[1724895130229,32.56694222,143.81,143.75,6.4976]
[1724895130399,6.9554,143.78,143.74,16.0759]
[1724895130711,6.956,143.76,143.74,16.0759]
[1724895131204,0.12549,143.77,143.74,16.0759]
[1724895131409,20.12549,143.77,143.74,16.0759]
[1724895131581,20.0,143.77,143.74,16.0759]
[1724895131982,20.0,143.78,143.74,16.0759]
[1724895133011,20.0,143.79,143.74,16.0759]
[1724895134283,20.0,143.83,143.74,16.0759]
[1724895134485,0.12549,143.82,143.74,16.0759]
[1724895134987,7.07869,143.82,143.74,16.0759]
[1724895135203,20.0,143.81,143.74,16.0759]
[1724895135789,26.9537,143.81,143.74,16.0759]
[1724895136309,20.0,143.81,143.74,16.0759]
[1724895136489,6.954,143.81,143.74,16.0759]
[1724895136684,20.0,143.8,143.74,16.0759]
[1724895138396,26.9542,143.8,143.74,16.0759]
[1724895138999,7.08019,143.79,143.74,16.0759]
[1724895139200,52.08089,143.78,143.74,16.0759]
[1724895139397,0.12549,143.77,143.74,16.0759]
[1724895139712,7.08149,143.77,143.74,16.0759]
[1724895139889,0.12549,143.77,143.74,16.0759]
[1724895140093,20.12549,143.77,143.74,16.0759]
[1724895140294,6.9563,143.76,143.74,16.0759]
[1724895141414,6.9561,143.76,143.74,16.0759]
[1724895141621,20.25098,143.75,143.71,6.3856]
[1724895141922,7.08199,143.75,143.71,6.3856]
[1724895142094,0.12549,143.74,143.71,6.3856]
[1724895142805,32.56694222,143.73,143.7,16.1132]
[1724895142995,20.25098,143.72,143.7,16.1132]
[1724895143317,27.20898,143.72,143.7,16.1132]
[1724895143690,20.25098,143.72,143.7,16.1132]
[1724895144409,27.20898,143.72,143.67,15.0417]
[1724895145418,20.25098,143.72,143.67,15.0417]
[1724895145616,20.0,143.72,143.67,15.0417]
[1724895146317,20.0,143.74,143.67,15.0417]
[1724895147313,20.0,143.74,143.68,1.39158184]
[1724895148319,6.9556,143.77,143.69,6.6176]
[1724895148518,7.20708,143.76,143.69,6.6176]
[1724895149599,0.25098,143.76,143.69,6.6176]
[1724895149803,6.955,143.79,143.7,15.7884]